bitfinex/quotes_SOLUSD_20250901
["timestamp","ask_amount","ask_price","bid_price","bid_amount"]
[1756770492572,42.17,197.24,197.21,0.12]
[1756770492879,41.46,197.24,197.21,0.12]
[1756770493078,133.8,197.28,197.22,0.69]
[1756770493387,49.93486176,197.27,197.22,0.69]
[1756770493597,46.5291945,197.27,197.22,0.69]
[1756770493807,138.86894184,197.28,197.23,0.69]
[1756770494097,138.86894184,197.28,197.21,0.12]
[1756770494289,5.06894184,197.28,197.22,0.69]
[1756770495589,68.17,197.29,197.22,0.69]
[1756770495791,98.58216647,197.29,197.21,0.12]
[1756770495993,26.0,197.22,197.21,0.12]
[1756770496174,70.92630461,197.22,197.19,0.12]
[1756770496375,4.11630461,197.21,197.19,0.12]
[1756770496997,0.71,197.25,197.19,0.12]
[1756770497309,5.07022258,197.23,197.19,0.12]
[1756770497507,0.71,197.22,197.19,0.12]
[1756770498081,5.07022258,197.23,197.19,0.12]
[1756770498392,41.5,197.22,197.2,0.12]
[1756770499117,5.07022258,197.23,197.2,0.12]
[1756770499118,46.57022258,197.23,197.2,0.12]
[1756770499612,47.28022258,197.23,197.2,0.12]
[1756770500392,26.0,197.2,197.19,0.12]
[1756770500587,70.86645238,197.2,197.18,0.12]
[1756770500904,4.11645238,197.19,197.18,0.12]
[1756770501207,0.71,197.19,197.18,0.12]
[1756770501629,5.07125107,197.19,197.18,0.12]
[1756770502709,41.44,197.22,197.18,0.81]
[1756770503005,5.07022258,197.23,197.19,0.69]
[1756770503379,5.07022258,197.23,197.2,0.69]
[1756770503586,5.06945148,197.26,197.21,0.69]
[1756770503795,3.40400641,197.25,197.22,0.69]
[1756770503991,4.11400641,197.25,197.18,0.81]
[1756770504580,3.40400641,197.25,197.18,5.88148198]
[1756770504785,0.03,197.27,197.19,20.2049783]
[1756770505184,0.03,197.27,197.21,13.59559401]
[1756770505396,5.0992388,197.27,197.21,13.59559401]
[1756770505599,0.03,197.27,197.22,0.69]
[1756770505785,0.03,197.27,197.23,0.69]
[1756770506186,0.03,197.27,197.23,59.69]
[1756770506491,0.03,197.27,197.24,0.69]
[1756770507021,0.03,197.27,197.23,59.0]
[1756770507022,0.03,197.27,197.25,0.69]
[1756770507184,0.03,197.27,197.23,59.0]
[1756770507586,26.71,197.26,197.19,0.69]
[1756770507790,68.11,197.26,197.19,0.69]
[1756770507994,3.40420398,197.25,197.19,0.69]
[1756770508196,67.4,197.26,197.19,0.69]
[1756770508597,3.40442492,197.25,197.18,0.12]
[1756770508798,4.11442492,197.25,197.18,0.12]
[1756770509586,5.07022258,197.23,197.19,0.69]
[1756770509786,26.0,197.26,197.2,0.69]
[1756770510092,5.06947917,197.26,197.18,0.81]
[1756770510289,5.77947917,197.26,197.18,0.81]
[1756770510486,18.45310788,197.26,197.18,59.81]
[1756770510687,5.06947917,197.26,197.18,59.12]
[1756770510880,5.06947917,197.26,197.19,0.69]
[1756770512405,4.11505957,197.25,197.18,0.12]
[1756770512606,3.40514689,197.24,197.18,0.12]
[1756770512800,0.71,197.25,197.18,0.12]
[1756770512801,4.11514689,197.25,197.18,0.12]
[1756770512987,26.0,197.21,197.18,0.12]
[1756770513187,3.40566168,197.2,197.18,0.12]
[1756770513411,4.11566168,197.2,197.18,0.12]
[1756770513583,5.78125107,197.19,197.18,0.12]
[1756770514402,47.18125107,197.19,197.18,0.12]
[1756770514799,50.58689173,197.19,197.18,0.12]
[1756770514998,50.58689173,197.19,197.17,0.2]
[1756770515206,3.40564066,197.18,197.17,0.2]
[1756770515612,4.10564066,197.18,197.17,0.2]
[1756770515818,47.85591958,197.18,197.11,0.12]
[1756770515991,26.0,197.15,197.11,0.12]
[1756770516619,26.7,197.15,197.11,0.12]
[1756770516791,0.7,197.15,197.11,0.12]
[1756770516994,4.10367993,197.15,197.11,0.12]
[1756770517409,0.7,197.14,197.11,0.12]
[1756770517812,47.13253728,197.14,197.11,0.12]
[1756770521220,47.09253728,197.14,197.11,0.12]
[1756770521414,46.39253728,197.14,197.11,0.12]
[1756770521621,47.09253728,197.14,197.11,0.12]
[1756770522704,26.0,197.11,197.09,0.12]
[1756770522913,70.65914177,197.1,197.04,0.68]
[1756770523107,41.32,197.09,197.04,0.68]
[1756770523312,41.32,197.09,197.03,0.2]
[1756770523498,5.07408159,197.08,197.03,0.2]
[1756770523694,5.07387547,197.09,197.04,0.68]
[1756770523900,41.3,197.09,197.05,0.68]
[1756770524100,41.3,197.09,197.06,0.68]
[1756770524328,31.07359369,197.1,197.06,0.68]
[1756770524716,31.07359369,197.1,197.07,0.68]
[1756770525528,5.77425913,197.17,197.07,0.68]
[1756770525529,4.28188602,197.18,197.08,0.68]
[1756770525728,5.07176548,197.17,197.08,0.68]
[1756770525934,5.07176548,197.17,197.09,5.91938429]
[1756770526111,5.07176548,197.17,197.1,0.68]
[1756770527997,26.0,197.15,197.1,0.68]
[1756770528202,26.0,197.15,197.11,0.68]
[1756770528433,26.0,197.15,197.08,24.58903506]
[1756770528723,26.0,197.15,197.12,0.68]
[1756770529333,26.0,197.15,197.08,83.58903506]
[1756770529517,31.07235253,197.15,197.12,0.68]
[1756770530218,5.06996552,197.24,197.13,6.59938429]
[1756770530427,5.06996552,197.24,197.1,13.59559401]
[1756770530428,44.77326693,197.23,197.14,0.68]
[1756770530737,41.38,197.23,197.14,0.68]
[1756770530938,67.38,197.23,197.14,0.68]
[1756770531435,5.07047966,197.22,197.14,0.68]
[1756770531633,5.07047966,197.22,197.15,13.59559401]
[1756770531833,31.07026422,197.23,197.16,0.68]
[1756770532216,31.77026422,197.23,197.16,0.68]
[1756770532436,26.0,197.2,197.13,0.68]
[1756770533108,41.34,197.21,197.14,13.59559401]
[1756770533446,5.07099391,197.2,197.14,14.27559401]
[1756770533736,5.07099391,197.2,197.1,10.99289605]
[1756770534028,5.07099391,197.2,197.12,0.68]
[1756770534818,5.07099391,197.2,197.12,59.68]
[1756770535644,5.07099391,197.2,197.13,14.27559401]
[1756770535805,5.07099391,197.2,197.14,0.68]
[1756770538233,0.73,197.26,197.15,19.5149783]
[1756770538415,41.3,197.25,197.16,6.59938429]
[1756770538617,26.0,197.22,197.17,0.68]
[1756770538912,5.06970849,197.25,197.17,6.59938429]
[1756770539225,0.7,197.24,197.16,0.68]
[1756770539743,26.0,197.23,197.16,0.68]
[1756770540514,0.7,197.23,197.1,5.07337141]
[1756770540718,26.0,197.19,197.11,14.27559401]
[1756770541024,26.7,197.19,197.11,14.27559401]
[1756770541220,26.7,197.19,197.07,5.07427242]
[1756770541221,0.7,197.18,197.07,13.59559401]
[1756770541420,0.7,197.18,197.1,13.59559401]
[1756770541728,0.7,197.18,197.1,72.59559401]
[1756770542041,42.1,197.18,197.1,73.27559401]
[1756770542739,5.07176548,197.17,197.1,59.68]
[1756770543036,26.0,197.14,197.06,13.59559401]
[1756770543344,0.7,197.13,197.05,0.68]
[1756770543635,42.06,197.13,197.05,0.68]
[1756770544443,26.0,197.14,197.08,13.59559401]
[1756770544653,72.41176548,197.17,197.09,0.68]
[1756770545026,26.0,197.14,197.05,13.59559401]
[1756770545216,0.68,197.13,197.05,13.59559401]
[1756770545949,0.68,197.13,197.05,73.29559401]
[1756770546159,0.68,197.13,197.05,59.7]
[1756770546347,0.68,197.13,197.03,0.2]
[1756770546348,26.0,197.09,197.03,0.2]
[1756770546642,26.68,197.09,197.03,0.2]
[1756770546847,5.07408159,197.08,197.03,0.2]
[1756770547239,5.75408159,197.08,197.03,0.2]
[1756770547437,0.68,197.07,197.03,0.2]
[1756770547645,0.68,197.06,197.03,0.2]
[1756770547817,26.0,197.04,197.03,0.2]
[1756770548157,5.07408159,197.08,197.03,0.2]
[1756770548457,41.38,197.07,197.03,0.9]
[1756770549054,46.45449681,197.07,197.03,0.9]
[1756770549254,26.0,197.08,197.04,0.7]
[1756770549420,26.0,197.08,197.05,0.7]
[1756770549947,5.07227998,197.15,197.06,0.7]
[1756770550120,67.36,197.12,197.06,0.7]
[1756770550315,26.0,197.12,197.06,0.7]
[1756770550519,42.06,197.14,197.06,0.7]
[1756770550751,26.0,197.11,197.06,0.7]
[1756770551052,5.07356671,197.1,197.06,13.59559401]
[1756770551347,5.07356671,197.1,197.04,13.59559401]
[1756770551554,5.07356671,197.1,197.04,14.29559401]
[1756770551854,26.0,197.13,197.06,13.59559401]
[1756770552153,46.45227998,197.15,197.08,13.59559401]
[1756770552327,3.40220019,197.14,197.06,5.91938429]
[1756770552527,3.40220019,197.14,197.08,13.59559401]
[1756770553030,26.0,197.13,197.09,0.7]
[1756770553432,26.0,197.13,197.1,0.7]
[1756770554061,26.0,197.13,197.06,5.07459656]
[1756770554355,175.84,197.16,197.08,14.29559401]
[1756770554657,26.0,197.13,197.09,0.7]
[1756770554867,26.0,197.14,197.1,13.59559401]
[1756770555049,26.0,197.14,197.11,0.7]
[1756770555236,26.0,197.14,197.11,59.7]
[1756770555565,5.10153766,197.18,197.12,0.7]
[1756770556141,0.03,197.18,197.12,0.7]
[1756770556658,0.03,197.18,197.13,13.59559401]
[1756770557035,0.03,197.18,197.13,0.7]
[1756770557234,5.78152081,197.18,197.13,0.7]
[1756770557672,5.10152081,197.18,197.13,0.7]
[1756770558258,0.68,197.17,197.12,13.59559401]
[1756770558454,31.10152081,197.18,197.13,0.7]
[1756770558849,26.03,197.18,197.12,13.59559401]
[1756770559064,26.03,197.18,197.14,0.7]
[1756770561172,26.03,197.18,197.15,0.7]
[1756770561544,31.10156837,197.18,197.13,0.7]
[1756770561860,31.78156837,197.18,197.13,0.7]
[1756770562244,0.68,197.17,197.12,13.59559401]
[1756770562861,0.68,197.17,197.12,14.29559401]
[1756770563046,0.68,197.16,197.11,59.0]
[1756770563249,31.10156837,197.18,197.11,59.0]
[1756770563250,31.10156837,197.18,197.12,0.7]
[1756770563460,31.10156837,197.18,197.06,26.0]
[1756770563461,0.68,197.17,197.06,26.0]
[1756770563664,26.0,197.15,197.07,13.59559401]
[1756770563865,67.3,197.15,197.06,13.59559401]
[1756770564072,0.68,197.16,197.09,13.59559401]
[1756770564257,26.0,197.16,197.09,17.30780417]
[1756770564449,5.10152253,197.18,197.11,13.59559401]
[1756770564650,5.10152253,197.18,197.12,0.7]
[1756770565455,0.03,197.18,197.13,13.59559401]
[1756770565773,0.03,197.18,197.1,46.41355614]
[1756770565944,0.68,197.17,197.11,13.59559401]
[1756770566364,3.43658083,197.18,197.08,29.71221016]
[1756770566555,3.43658083,197.18,197.07,41.32]
[1756770566556,0.68,197.16,197.07,0.7]
[1756770566770,26.0,197.12,197.05,13.71559401]
[1756770567074,41.98,197.16,197.07,13.59559401]
[1756770567285,26.0,197.13,197.09,13.59559401]
[1756770567576,31.75301535,197.13,197.06,14.29559401]
[1756770567946,31.07301535,197.13,197.07,0.7]
[1756770569352,30.07301535,197.13,197.07,0.7]
[1756770569674,30.07301535,197.13,197.07,59.0]
[1756770569855,30.75301535,197.13,197.07,59.0]
[1756770570174,0.68,197.12,197.05,0.12]
[1756770570385,4.09030791,197.12,197.05,0.12]
[1756770570589,41.26,197.11,197.05,0.12]
[1756770570754,3.41030791,197.1,197.05,0.12]
[1756770570955,5.07382414,197.09,197.07,0.12]
[1756770571174,5.75382414,197.09,197.07,0.12]
[1756770571372,0.68,197.08,197.07,0.12]
[1756770573263,31.75408159,197.08,197.07,0.12]
[1756770573593,35.16310571,197.08,197.07,0.12]
[1756770574565,75.72310571,197.08,197.07,0.12]
[1756770575184,67.24,197.09,197.07,0.12]
[1756770575381,72.31389215,197.09,197.07,0.12]
[1756770575763,31.07389215,197.09,197.07,0.12]
[1756770576081,26.0,197.09,197.07,0.12]
[1756770576286,31.0738825,197.09,197.07,0.12]
[1756770576684,26.0,197.09,197.07,0.12]
[1756770577582,31.07391763,197.09,197.07,0.12]
[1756770577973,26.0,197.09,197.07,0.12]
[1756770578387,31.07391374,197.09,197.07,0.12]
[1756770578589,26.0,197.09,197.07,0.12]
[1756770578785,31.07384205,197.09,197.07,0.12]
[1756770578990,0.69,197.08,197.07,0.12]
[1756770579379,5.76408159,197.08,197.07,0.12]
[1756770579580,46.98408159,197.08,197.07,0.12]
[1756770580377,31.0738851,197.09,197.07,0.12]
[1756770580684,26.0,197.08,197.07,0.12]
[1756770580881,31.76387882,197.09,197.07,0.12]
[1756770581190,72.96387882,197.09,197.07,0.12]
[1756770581374,0.69,197.08,197.07,0.12]
[1756770582094,4.09804306,197.08,197.07,0.12]
[1756770583280,44.56804306,197.08,197.07,0.12]
[1756770583487,50.33212465,197.08,197.07,0.12]
[1756770583688,26.0,197.06,197.05,0.12]
[1756770583996,29.40804306,197.06,197.05,0.12]
[1756770584199,30.09804306,197.06,197.05,0.12]
[1756770584900,29.40804306,197.06,197.05,0.12]
[1756770585397,31.07459656,197.06,197.05,0.12]
[1756770585974,46.21459656,197.06,197.05,0.12]
[1756770586500,46.19459656,197.06,197.05,0.12]
[1756770587098,5.07459656,197.06,197.05,0.12]
[1756770587307,41.1,197.06,197.05,0.79]
[1756770588097,164.87437238,197.07,197.05,0.79]
[1756770588291,200.9,197.07,197.05,0.79]
[1756770588481,26.0,197.07,197.06,0.67]
[1756770588687,41.1,197.08,197.06,0.67]
[1756770589399,46.17408933,197.08,197.06,0.67]
[1756770589588,46.17408933,197.08,197.05,0.12]
[1756770589788,46.17408933,197.08,197.05,0.79]
[1756770589998,46.86408933,197.08,197.05,0.12]
[1756770590200,0.69,197.07,197.05,0.12]
[1756770590383,46.17408933,197.08,197.05,0.12]
[1756770590985,41.06,197.08,197.05,0.12]
[1756770591393,41.75,197.08,197.05,0.12]
[1756770591589,0.69,197.07,197.05,0.12]
[1756770591795,41.04,197.06,197.05,0.12]
[1756770592696,46.11459656,197.06,197.05,0.12]
[1756770593409,50.21199396,197.06,197.05,0.12]
[1756770594387,9.17199396,197.06,197.05,0.12]
[1756770594900,50.19199396,197.06,197.05,0.12]
[1756770595086,75.50199396,197.06,197.05,0.12]
[1756770595402,76.19199396,197.06,197.05,0.12]
[1756770595705,75.48199396,197.06,197.05,0.12]
[1756770596089,76.17199396,197.06,197.05,0.12]
[1756770597007,50.17199396,197.06,197.05,0.12]
[1756770598405,49.42199396,197.06,197.05,0.12]
[1756770598584,50.11199396,197.06,197.05,0.12]
[1756770599308,49.42199396,197.06,197.05,0.12]
[1756770599690,50.11199396,197.06,197.05,0.12]
[1756770600587,50.11199396,197.06,197.03,0.2]
[1756770600588,31.07511165,197.04,197.03,0.2]
[1756770600790,66.98,197.04,197.03,0.2]
[1756770601006,26.0,197.04,197.03,0.87]
[1756770601307,40.98,197.05,197.03,0.87]
[1756770601618,40.98,197.05,197.03,0.2]
[1756770602512,40.98,197.04,197.03,0.2]
[1756770602712,46.05511165,197.04,197.03,0.2]
[1756770603694,40.98,197.04,197.03,0.2]
[1756770603898,40.96,197.04,197.03,0.87]
[1756770604105,26.0,197.06,197.03,0.87]
[1756770604314,40.96,197.05,197.04,0.67]
[1756770604511,66.94,197.06,197.04,0.67]
[1756770605328,72.01464856,197.06,197.03,0.2]
[1756770605491,72.01464856,197.06,197.03,0.89]
[1756770606214,72.01464856,197.06,197.03,0.2]
[1756770606401,72.69464856,197.06,197.03,0.2]
[1756770607304,3.41084523,197.05,197.03,0.2]
[1756770607507,8.48575403,197.05,197.03,0.2]
[1756770607708,5.0749088,197.05,197.03,0.2]
[1756770608617,40.92,197.04,197.03,0.2]
[1756770609615,49.40821024,197.04,197.03,0.2]
[1756770610007,44.33309859,197.04,197.03,0.2]
[1756770610203,40.92,197.04,197.03,0.2]
[1756770610405,44.33487201,197.04,197.03,0.89]
[1756770610613,49.40998366,197.04,197.03,0.89]
[1756770610808,49.40998366,197.04,197.03,0.2]
[1756770613020,50.08998366,197.04,197.03,0.2]
[1756770613805,49.40998366,197.04,197.03,0.2]
[1756770615320,44.17487201,197.04,197.03,0.89]
[1756770615626,49.24998366,197.04,197.03,0.89]
[1756770615820,8.48998366,197.04,197.03,0.89]
[1756770616132,49.22998366,197.04,197.03,0.89]
[1756770616424,3.41487201,197.04,197.03,0.89]
[1756770616810,3.42114086,197.05,197.03,0.89]
[1756770617029,3.42114086,197.05,197.04,0.69]
[1756770618103,133.8,197.06,197.04,0.69]
[1756770618303,0.03,197.07,197.04,0.69]
[1756770618504,3.42118359,197.06,197.05,0.69]
[1756770619630,3.42099426,197.06,197.05,0.69]
[1756770620905,0.03,197.07,197.05,5.76485409]
[1756770621303,0.03,197.07,197.06,0.69]
[1756770621526,0.03,197.07,197.06,26.69]
[1756770621724,0.03,197.07,197.06,0.69]
[1756770622032,3.45099426,197.07,197.05,26.0]
[1756770622220,0.03,197.07,197.06,0.69]
[1756770622536,3.45099426,197.07,197.06,0.69]
[1756770622714,0.03,197.07,197.06,0.69]
[1756770624233,0.03,197.07,197.06,5.76459656]
[1756770625109,0.03,197.07,197.06,19.36019057]
[1756770625320,0.03,197.07,197.06,23.07240073]
[1756770626434,0.03,197.07,197.06,19.36019057]
[1756770626633,0.03,197.07,197.06,23.07240073]
[1756770628734,0.03,197.09,197.08,39.59559401]
[1756770628942,0.03,197.11,197.09,13.59559401]
[1756770629117,0.03,197.11,197.1,62.207371]
[1756770629447,0.03,197.13,197.11,13.59559401]
[1756770629616,0.03,197.13,197.12,14.1028992]
[1756770629815,0.03,197.13,197.12,23.5781613]
[1756770630019,0.03,197.13,197.12,25.6105263]
[1756770630234,1e-08,197.13,197.12,25.6105263]
[1756770630540,1e-08,197.13,197.12,84.6105263]
[1756770630913,0.03,197.18,197.15,39.59559401]
[1756770631115,0.03,197.18,197.16,54.27559401]
[1756770631332,0.03,197.18,197.16,57.98780417]
[1756770631534,0.03,197.18,197.16,58.67780417]
[1756770631938,0.03,197.18,197.16,23.06982689]
[1756770632153,0.03,197.18,197.16,14.28559401]
[1756770632661,0.03,197.18,197.16,13.59559401]
[1756770632817,0.03,197.18,197.13,13.59559401]
[1756770633626,0.03,197.18,197.13,14.28559401]
[1756770634346,0.71,197.17,197.12,59.0]
[1756770634548,0.71,197.17,197.1,17.99780417]
[1756770634549,0.03,197.17,197.11,54.27559401]
[1756770634731,0.68,197.16,197.11,54.27559401]
[1756770634921,0.68,197.16,197.11,54.96559401]
[1756770635337,0.03,197.17,197.11,54.96559401]
[1756770636245,0.03,197.17,197.09,3.71221016]
[1756770636461,26.67,197.16,197.08,14.25559401]
[1756770636630,0.67,197.15,197.08,0.66]
[1756770636832,0.67,197.15,197.07,41.32]
[1756770637352,26.0,197.16,197.07,41.32]
[1756770637527,0.67,197.14,197.07,41.32]
[1756770638434,5.0727946,197.13,197.07,41.32]
[1756770639335,0.67,197.12,197.06,72.59559401]
[1756770639645,0.67,197.12,197.04,0.78]
[1756770640435,5.07330931,197.11,197.04,0.78]
[1756770641243,31.07289325,197.13,197.05,13.59559401]
[1756770641425,31.07289325,197.13,197.06,0.66]
[1756770642344,26.0,197.13,197.08,13.59559401]
[1756770642538,138.87205248,197.16,197.09,0.66]
[1756770642737,0.67,197.15,197.08,72.59559401]
[1756770643054,26.0,197.13,197.07,40.66]
[1756770643422,26.0,197.13,197.07,41.32]
[1756770643630,26.0,197.13,197.08,0.66]
[1756770643834,26.0,197.13,197.09,0.66]
[1756770644356,26.0,197.13,197.08,13.59559401]
[1756770644557,26.0,197.13,197.1,0.66]
[1756770644741,0.7,197.17,197.11,0.66]
[1756770644742,0.03,197.17,197.11,0.66]
[1756770645949,0.03,197.17,197.11,59.66]
[1756770646155,5.10185406,197.17,197.11,59.66]
[1756770647035,0.03,197.17,197.11,59.66]
[1756770649458,0.03,197.17,197.12,0.66]
[1756770649667,0.03,197.17,197.13,0.66]
[1756770652071,0.03,197.17,197.11,59.0]
[1756770652247,0.03,197.17,197.14,0.66]
[1756770652441,0.67,197.16,197.11,59.0]
[1756770652658,0.67,197.15,197.09,0.66]
[1756770652969,0.7,197.17,197.09,0.66]
[1756770653670,5.07202272,197.16,197.09,0.66]
[1756770653868,26.0,197.12,197.08,0.12]
[1756770654668,26.0,197.12,197.08,0.78]
[1756770655272,26.0,197.13,197.09,0.66]
[1756770655770,5.07305194,197.12,197.08,0.12]
[1756770656262,26.0,197.11,197.08,0.12]
[1756770656462,26.67,197.11,197.08,0.12]
[1756770656666,26.0,197.1,197.08,0.12]
[1756770657142,26.0,197.1,197.08,0.78]
[1756770657960,26.67,197.14,197.09,0.66]
[1756770658157,0.67,197.13,197.08,0.12]
[1756770658463,26.0,197.1,197.08,0.12]
[1756770659463,31.07283462,197.13,197.09,0.66]
[1756770659968,31.07283462,197.13,197.08,0.12]
[1756770659969,0.67,197.12,197.08,0.12]
[1756770660270,26.0,197.13,197.09,0.66]
[1756770660455,26.0,197.13,197.1,0.66]
[1756770660775,71.71258868,197.14,197.08,0.78]
[1756770661177,0.67,197.12,197.08,0.12]
[1756770661352,26.67,197.11,197.08,0.12]
[1756770661551,5.07356671,197.1,197.08,0.12]
[1756770662177,31.07334213,197.11,197.08,0.12]
[1756770662478,31.74334213,197.11,197.08,0.12]
[1756770662772,0.67,197.1,197.08,0.12]
[1756770662972,0.67,197.09,197.08,0.12]
[1756770663551,31.74382414,197.09,197.08,0.12]
[1756770665083,26.0,197.09,197.08,0.12]
[1756770665853,26.0,197.09,197.08,0.8]
[1756770666282,31.07382414,197.09,197.08,0.12]
[1756770666685,31.73382414,197.09,197.08,0.12]
[1756770667581,31.07382414,197.09,197.08,0.12]
[1756770667988,26.0,197.09,197.08,0.12]
[1756770668164,31.07382414,197.09,197.08,0.12]
[1756770668687,31.73382414,197.09,197.08,0.12]
[1756770668859,5.73382414,197.09,197.08,0.12]
[1756770669059,26.0,197.07,197.06,0.12]
[1756770669261,66.64,197.07,197.06,0.12]
[1756770669588,71.40657847,197.07,197.06,0.12]
[1756770669963,76.48091753,197.07,197.06,0.12]
[1756770670582,79.88888202,197.07,197.06,0.12]
[1756770671287,39.24888202,197.07,197.06,0.12]
[1756770671670,72.37433906,197.07,197.06,0.12]
[1756770671873,71.71433906,197.07,197.06,0.12]
[1756770672268,31.07433906,197.07,197.06,0.12]
[1756770672470,71.71433906,197.07,197.06,0.12]
[1756770672788,72.37433906,197.07,197.06,0.12]
[1756770672994,75.78094056,197.07,197.06,0.12]
[1756770673170,72.37433906,197.07,197.06,0.12]
[1756770673992,76.47811406,197.07,197.06,0.12]
[1756770676392,79.88565506,197.07,197.06,0.12]
[1756770680502,79.88565506,197.07,197.04,0.12]
[1756770680689,8.97484941,197.06,197.04,0.12]
[1756770680997,44.047541,197.05,197.04,0.12]
[1756770681175,44.707541,197.05,197.03,0.2]
[1756770681375,9.63484941,197.04,197.03,0.2]
[1756770681798,26.0,197.02,197.01,0.12]
[1756770681980,70.047541,197.02,197.01,0.12]
[1756770682178,81.35047624,197.02,197.01,0.12]
[1756770684398,80.69047624,197.02,197.01,0.12]
[1756770685099,36.64293524,197.02,197.01,0.12]
[1756770685404,77.28293524,197.02,197.01,0.12]
[1756770685904,40.04729271,197.02,197.01,0.12]
[1756770686204,80.68729271,197.02,197.01,0.12]
[1756770686401,40.70729271,197.02,196.98,0.2]
[1756770686718,40.64,197.01,196.98,0.2]
[1756770687599,159.8,197.0,196.98,0.2]
[1756770688200,164.87614213,197.0,196.98,0.2]
[1756770688913,205.51614213,197.0,196.98,0.2]
[1756770690112,159.8,197.0,196.99,0.8]
[1756770690627,205.51614213,197.0,196.99,0.12]
[1756770691986,45.71614213,197.0,196.99,0.12]
[1756770693712,31.07614213,197.0,196.99,0.8]
[1756770693926,45.71614213,197.0,196.99,0.8]
[1756770695504,46.38614213,197.0,196.99,0.12]
[1756770696848,46.38614213,197.0,196.98,0.2]
[1756770697012,46.38614213,197.0,196.93,0.2]
[1756770697013,26.0,196.96,196.93,0.2]
[1756770697341,5.07768863,196.94,196.93,0.2]
[1756770697517,45.69768863,196.94,196.93,0.2]
[1756770700145,45.69768863,196.94,196.88,0.2]
[1756770700146,26.0,196.91,196.88,0.2]
[1756770700340,66.62,196.91,196.88,0.2]
[1756770700644,66.62,196.91,196.88,0.86]
[1756770700820,66.62,196.91,196.89,0.66]
[1756770701523,26.0,196.91,196.89,0.66]
[1756770701727,40.62,196.9,196.89,0.66]
[1756770702127,45.69872016,196.9,196.89,0.66]
[1756770702613,45.69872016,196.9,196.88,0.2]
[1756770702811,2.035883,196.95,196.89,0.66]
[1756770702812,26.0,196.92,196.89,0.66]
[1756770703017,66.62,196.92,196.89,0.66]
[1756770703513,66.62,196.92,196.9,0.66]
[1756770704055,66.62,196.92,196.91,0.66]
[1756770704274,71.69820434,196.92,196.91,0.66]
[1756770704558,31.07820434,196.92,196.91,0.66]
[1756770704752,71.69820434,196.92,196.91,0.66]
[1756770705272,71.69820434,196.92,196.88,0.86]
[1756770705423,71.69820434,196.92,196.89,0.66]
[1756770706649,71.69820434,196.92,196.88,0.2]
[1756770706864,72.36820434,196.92,196.88,0.2]
[1756770708144,72.36820434,196.92,196.88,0.86]
[1756770708536,71.69820434,196.92,196.88,0.86]
[1756770709638,72.36820434,196.92,196.88,0.2]
[1756770709825,31.74820434,196.92,196.88,0.2]
[1756770710152,26.0,196.89,196.88,0.86]
[1756770711153,26.0,196.89,196.88,0.2]
[1756770711455,26.0,196.89,196.88,0.86]
[1756770715955,133.8,196.93,196.88,9.65143388]